fUSD/lending_fUSD_20260614
["ID","MTS","AMOUNT","RATE_DAILY","PERIOD"]
[424992786,1781386243000,-155.0,0.00027975,5]
[424992813,1781386243000,-318.86037649,0.00028393,7]
[424992763,1781386243000,-196.23,0.00027733,2]
[424992765,1781386243000,-196.23,0.00027763,7]
[424992764,1781386243000,-196.31,0.00027763,7]
[424992766,1781386243000,-2500.0,0.00027772,2]
[424992769,1781386243000,-196.31,0.00027824,2]
[424992767,1781386243000,-196.31,0.00027794,30]
[424992770,1781386243000,-196.23,0.00027824,2]
[424992773,1781386243000,-2560.98,0.00027872,2]
[424992772,1781386243000,-196.23,0.00027855,7]
[424992771,1781386243000,-196.31,0.00027855,7]
[424992776,1781386243000,-196.23,0.00027885,30]
[424992777,1781386243000,-196.31,0.00027916,2]
[424992774,1781386243000,-159.0,0.00027885,5]
[424992775,1781386243000,-196.31,0.00027885,30]
[424992778,1781386243000,-196.23,0.00027916,2]
[424992780,1781386243000,-254.56,0.00027945,2]
[424992779,1781386243000,-300.0,0.00027945,2]
[424992784,1781386243000,-196.23,0.00027946,7]
[424992781,1781386243000,-3000.0,0.00027945,2]
[424992788,1781386243000,-530.28813338,0.00027985,2]
[424992782,1781386243000,-1140.0,0.00027945,2]
[424992785,1781386243000,-150.0,0.00027973,2]
[424992787,1781386243000,-196.31,0.00027977,30]
[424992814,1781386243000,-353.43719893,0.00028393,7]
[424992768,1781386243000,-196.23,0.00027794,30]
[424992817,1781386243000,-305.7157484,0.00028393,7]
[424992845,1781386243000,-171.22149293,0.00028396,7]
[424992849,1781386243000,-172.96384826,0.00028396,7]
[424992846,1781386243000,-164.0369165,0.00028396,7]
[424992851,1781386243000,-155.90346211,0.00028396,7]
[424992850,1781386243000,-153.58249697,0.00028396,7]
[424992852,1781386243000,-175.54682899,0.00028397,7]
[424992853,1781386243000,-204.20236839,0.00028397,7]
[424992860,1781386243000,-3716.86967154,0.000284,2]
[424992857,1781386243000,-4632.98232489,0.000284,2]
[424992854,1781386243000,-206.87779578,0.00028397,2]
[424992855,1781386243000,-500.0,0.00028399,120]
[424992858,1781386243000,-4632.98232489,0.000284,2]
[424992856,1781386243000,-3004.41,0.000284,7]
[424992859,1781386243000,-4632.98232489,0.000284,2]
[424992861,1781386243000,-3716.86967152,0.000284,2]
[424992863,1781386243000,-10005.26992955,0.000284,2]
[424992862,1781386243000,-3716.86967152,0.000284,2]
[424992864,1781386243000,-10005.26992954,0.000284,2]
[424992867,1781386243000,-151.0,0.00028452,7]
[424992869,1781386243000,-183.44,0.00028452,2]
[424992866,1781386243000,-3781.12828687,0.00028436,2]
[424992868,1781386243000,-151.0,0.00028452,7]
[424992870,1781386243000,-3781.12828687,0.00028474,2]
[424992844,1781386243000,-208.48867941,0.00028396,7]
[424992847,1781386243000,-208.56736529,0.00028396,7]
[424992815,1781386243000,-185.35148883,0.00028393,5]
[424992841,1781386243000,-207.24069803,0.00028396,7]
[424992843,1781386243000,-150.10075772,0.00028396,7]
[424992819,1781386243000,-305.96063095,0.00028393,2]
[424992818,1781386243000,-220.71808857,0.00028393,7]
[424992820,1781386243000,-328.71995069,0.00028393,7]
[424992825,1781386243000,-151.0,0.00028393,7]
[424992823,1781386243000,-191.60524519,0.00028393,7]
[424992824,1781386243000,-169.33718358,0.00028393,7]
[424992821,1781386243000,-239.78992656,0.00028393,7]
[424992827,1781386243000,-209.567313,0.00028393,7]
[424992829,1781386243000,-197.18999182,0.00028393,7]
[424992828,1781386243000,-200.36197634,0.00028393,7]
[424992826,1781386243000,-151.0,0.00028393,7]
[424992822,1781386243000,-315.56997073,0.00028393,7]
[424992832,1781386243000,-301.09832494,0.00028393,7]
[424992837,1781386243000,-500.0,0.00028396,7]
[424992838,1781386243000,-223.49234737,0.00028396,7]
[424992834,1781386243000,-153.22634624,0.00028393,7]
[424992840,1781386243000,-158.57807441,0.00028396,7]
[424992833,1781386243000,-227.58583298,0.00028393,7]
[424992836,1781386243000,-153.01298394,0.00028393,7]
[424992835,1781386243000,-181.78823463,0.00028393,7]
[424992831,1781386243000,-186.57098654,0.00028393,7]
[424992839,1781386243000,-162.11383385,0.00028396,7]
[424992842,1781386243000,-164.53055315,0.00028396,7]
[424992830,1781386243000,-176.43839303,0.00028393,7]
[424992920,1781386244000,-160.0,0.0002872,3]
[424992918,1781386244000,-151.0,0.0002871,7]
[424992917,1781386244000,-1040.33,0.0002871,2]
[424992916,1781386244000,-496.82,0.0002871,2]
[424992911,1781386244000,-2000.0,0.0002871,2]
[424992913,1781386244000,-2000.0,0.0002871,2]
[424992912,1781386244000,-235.53,0.0002871,2]
[424992910,1781386244000,-2000.0,0.0002871,2]
[424992914,1781386244000,-598.14,0.0002871,2]
[424992922,1781386244000,-500.0,0.00028767,2]
[424992921,1781386244000,-218.0466575,0.00028767,2]
[424992930,1781386244000,-247.55607608,0.00028973,2]
[424992919,1781386244000,-151.0,0.0002871,7]
[424992924,1781386244000,-2197.36,0.00028839,2]
[424992923,1781386244000,-3605.42,0.00028838,2]
[424992925,1781386244000,-342.0,0.000289,2]
[424992927,1781386244000,-326.70403543,0.00028973,2]
[424992926,1781386244000,-372.0,0.000289,2]
[424992933,1781386244000,-3605.47,0.00029,30]
[424992928,1781386244000,-165.03738405,0.00028973,2]
[424992932,1781386244000,-2197.45,0.00029,30]
[424992929,1781386244000,-433.62706708,0.00028973,2]
[424992931,1781386244000,-231.4,0.0002899,2]
[424992909,1781386244000,-2000.0,0.0002871,2]
[424992915,1781386244000,-2000.0,0.0002871,2]
[424992907,1781386244000,-2000.0,0.0002871,2]
[424992892,1781386244000,-2197.36,0.00028679,7]
[424992905,1781386244000,-2000.0,0.0002871,2]
[424992881,1781386244000,-383.0,0.00028553,2]
[424992934,1781386244000,-12580.52246117,0.00029,2]
[424992882,1781386244000,-1228.0,0.00028553,2]
[424992883,1781386244000,-6076.0,0.00028553,2]
[424992885,1781386244000,-182.07727479,0.0002858,2]
[424992886,1781386244000,-151.0,0.00028593,2]
[424992884,1781386244000,-3644.0,0.00028553,2]
[424992889,1781386244000,-184.0,0.00028625,3]
[424992887,1781386244000,-500.0,0.00028593,120]
[424992891,1781386244000,-3605.42,0.00028677,7]
[424992890,1781386244000,-3781.12828687,0.00028666,2]
[424992888,1781386244000,-231.4,0.00028619,2]
[424992895,1781386244000,-734.10275943,0.00028681,14]
[424992894,1781386244000,-2384.0,0.0002868,3]
[424992893,1781386244000,-170.0,0.0002868,3]
[424992896,1781386244000,-1295.04428362,0.00028681,14]
[424992899,1781386244000,-880.48347822,0.00028687,2]
[424992898,1781386244000,-2621.2428,0.00028681,14]
[424992897,1781386244000,-1937.30879679,0.00028681,14]
[424992900,1781386244000,-3000.0,0.0002871,2]
[424992904,1781386244000,-2000.0,0.0002871,2]
[424992908,1781386244000,-810.51,0.0002871,2]
[424992906,1781386244000,-745.22,0.0002871,2]
[424992903,1781386244000,-2000.0,0.0002871,2]
[424992901,1781386244000,-2125.03,0.0002871,2]
[424992902,1781386244000,-2135.42,0.0002871,2]
[424992880,1781386244000,-1275.0,0.00028553,2]
[424992936,1781386244000,-156.0,0.00029019,30]
[424992938,1781386244000,-155.0,0.00029019,30]
[424992966,1781386244000,-202.92923087,0.00029245,7]
[424992965,1781386244000,-216.35867747,0.00029245,7]
[424992977,1781386244000,-235.45900252,0.00029245,7]
[424992975,1781386244000,-229.74463865,0.00029245,2]
[424992979,1781386244000,-163.37706886,0.00029245,7]
[424992973,1781386244000,-258.22108349,0.00029245,7]
[424992978,1781386244000,-202.63285047,0.00029245,7]
[424992969,1781386244000,-218.70264797,0.00029245,7]
[424992970,1781386244000,-199.72668108,0.00029245,7]
[424992976,1781386244000,-189.53606206,0.00029245,7]
[424992971,1781386244000,-251.11026365,0.00029245,7]
[424992960,1781386244000,-150.0,0.00029214,2]
[424992974,1781386244000,-155.15033319,0.00029245,7]
[424992980,1781386244000,-155.66443778,0.00029245,7]
[424992982,1781386244000,-284.52261905,0.00029245,7]
[424992981,1781386244000,-213.68271511,0.00029245,7]
[424992983,1781386244000,-229.39754902,0.00029245,7]
[424992984,1781386244000,-150.53457481,0.00029245,7]
[424992985,1781386244000,-207.32922431,0.00029245,7]
[424992986,1781386244000,-194.12095416,0.00029245,7]
[424992987,1781386244000,-261.65314761,0.00029245,7]
[424992988,1781386244000,-249.6104529,0.00029245,7]
[424992990,1781386244000,-257.32029384,0.00029245,7]
[424992935,1781386244000,-10000.0,0.00029,2]
[424992972,1781386244000,-189.04195933,0.00029245,7]
[424992967,1781386244000,-159.34712881,0.00029245,7]
[424992989,1781386244000,-165.90244064,0.00029245,7]
[424992962,1781386244000,-150.0,0.00029214,2]
[424992964,1781386244000,-246.78594133,0.00029245,7]
[424992939,1781386244000,-316.0,0.00029019,30]
[424992937,1781386244000,-155.0,0.00029019,30]
[424992943,1781386244000,-152.0,0.00029019,30]
[424992941,1781386244000,-157.0,0.00029019,30]
[424992940,1781386244000,-354.0,0.00029019,30]
[424992945,1781386244000,-152.0,0.00029019,30]
[424992944,1781386244000,-151.0,0.00029019,30]
[424992946,1781386244000,-242.0,0.00029019,30]
[424992947,1781386244000,-151.38250604,0.00029019,30]
[424992948,1781386244000,-153.0,0.00029019,30]
[424992949,1781386244000,-154.0,0.00029019,30]
[424992942,1781386244000,-151.0,0.00029019,30]
[424992951,1781386244000,-880.48347822,0.00029023,2]
[424992968,1781386244000,-154.93833697,0.00029245,7]
[424992963,1781386244000,-219.20602068,0.00029245,7]
[424992961,1781386244000,-150.0,0.00029214,2]
[424992950,1781386244000,-153.0,0.00029019,30]
[424992956,1781386244000,-151.0,0.000291,7]
[424992959,1781386244000,-10000.0,0.00029148,2]
[424992957,1781386244000,-231.460396,0.000291,7]
[424992952,1781386244000,-436.22,0.00029026,2]
[424992953,1781386244000,-281.0,0.00029099,2]
[424992955,1781386244000,-3004.41,0.000291,7]
[424992954,1781386244000,-14836.21352524,0.000291,2]
[424992958,1781386244000,-350.0,0.00029108,2]
[424993029,1781386245000,-317.15614882,0.00029252,7]
[424993026,1781386245000,-152.83499115,0.00029252,7]
[424993024,1781386245000,-446.98469475,0.00029252,7]
[424993021,1781386245000,-419.13462601,0.00029249,7]
[424993017,1781386245000,-451.64748742,0.00029249,7]
[424993022,1781386245000,-306.02596787,0.00029249,7]
[424993025,1781386245000,-274.49900354,0.00029252,7]
[424993019,1781386245000,-306.45269247,0.00029249,7]
[424993020,1781386245000,-363.57646925,0.00029249,7]
[424993023,1781386245000,-297.39803289,0.00029249,7]
[424993028,1781386245000,-159.70935574,0.00029252,7]
[424993031,1781386245000,-329.0611063,0.00029252,7]
[424993030,1781386245000,-414.48139606,0.00029252,7]
[424993032,1781386245000,-300.20151545,0.00029252,7]
[424993038,1781386245000,-417.13473059,0.00029252,7]
[424993035,1781386245000,-294.46716723,0.00029252,7]
[424993033,1781386245000,-416.97735883,0.00029252,7]
[424993034,1781386245000,-188.26494184,0.00029252,7]
[424993036,1781386245000,-342.44298586,0.00029252,7]
[424993037,1781386245000,-328.07383299,0.00029252,7]
[424993039,1781386245000,-271.62201039,0.00029252,7]
[424993040,1781386245000,-345.92769652,0.00029252,7]
[424993018,1781386245000,-455.17166596,0.00029249,7]
[424993027,1781386245000,-324.22766771,0.00029252,7]
[424993016,1781386245000,-373.14197309,0.00029249,7]
[424993004,1781386245000,-279.57465818,0.00029249,7]
[424993012,1781386245000,-338.67436715,0.00029249,7]
[424993041,1781386245000,-307.16499394,0.00029252,7]
[424992991,1781386245000,-200.41591201,0.00029245,7]
[424992992,1781386245000,-162.60127905,0.00029245,7]
[424992993,1781386245000,-243.88382209,0.00029245,7]
[424992995,1781386245000,-1440.73,0.00029248,120]
[424992996,1781386245000,-613.01710801,0.00029249,7]
[424992994,1781386245000,-500.0,0.00029248,10]
[424992998,1781386245000,-396.63227795,0.00029249,7]
[424993001,1781386245000,-478.29056474,0.00029249,7]
[424993000,1781386245000,-327.70796256,0.00029249,7]
[424992997,1781386245000,-364.00155665,0.00029249,7]
[424992999,1781386245000,-330.84304026,0.00029249,7]
[424993002,1781386245000,-530.15579839,0.00029249,7]
[424993005,1781386245000,-458.5736226,0.00029249,7]
[424993003,1781386245000,-370.70297766,0.00029249,5]
[424993006,1781386245000,-441.43617714,0.00029249,7]
[424993008,1781386245000,-493.07992604,0.00029249,7]
[424993007,1781386245000,-458.94094643,0.00029249,2]
[424993010,1781386245000,-473.35495609,0.00029249,7]
[424993011,1781386245000,-383.21049039,0.00029249,7]
[424993009,1781386245000,-479.57985311,0.00029249,7]
[424993014,1781386245000,-394.37998364,0.00029249,7]
[424993013,1781386245000,-400.72395269,0.00029249,7]
[424993015,1781386245000,-352.87678606,0.00029249,7]
[424993043,1781386245000,-311.80692423,0.00029252,7]
[424993069,1781386245000,-350.0,0.00029666,30]
[424993044,1781386245000,-351.09365797,0.00029253,7]
[424993075,1781386245000,-3000.0,0.00029667,7]
[424993073,1781386245000,-3000.0,0.00029667,7]
[424993079,1781386245000,-300.0,0.0002967,7]
[424993080,1781386245000,-900.0,0.00029671,7]
[424993076,1781386245000,-660.0,0.00029667,7]
[424993077,1781386245000,-3000.0,0.00029669,7]
[424993074,1781386245000,-3000.0,0.00029667,7]
[424993078,1781386245000,-1140.0,0.00029669,7]
[424993081,1781386245000,-2238.15547797,0.00029685,2]
[424993082,1781386245000,-880.48347822,0.00029694,2]
[424993083,1781386245000,-3794.56864203,0.0002971,2]
[424993090,1781386245000,-506.0,0.0002981,13]
[424993085,1781386245000,-245.51614044,0.00029719,2]
[424993086,1781386245000,-2231.68521546,0.00029725,2]
[424993084,1781386245000,-3794.56864203,0.00029714,2]
[424993089,1781386245000,-245.51614042,0.0002981,2]
[424993087,1781386245000,-1440.73,0.00029799,120]
[424993088,1781386245000,-3004.41,0.000298,7]
[424993093,1781386245000,-3794.56864203,0.00029811,2]
[424993091,1781386245000,-300.0,0.0002981,10]
[424993092,1781386245000,-314.40729183,0.0002981,10]
[424993094,1781386245000,-212.45750559,0.00029815,2]
[424993042,1781386245000,-250.27835641,0.00029252,7]
[424993071,1781386245000,-254.56,0.00029667,7]
[424993072,1781386245000,-3000.0,0.00029667,7]
[424993096,1781386245000,-162.28696684,0.00029816,7]
[424993095,1781386245000,-187.71333445,0.00029815,2]
[424993047,1781386245000,-3794.56864203,0.00029357,2]
[424993046,1781386245000,-350.0,0.00029325,2]
[424993048,1781386245000,-880.48347822,0.00029359,2]
[424993049,1781386245000,-2000.0,0.00029361,30]
[424993045,1781386245000,-660.0,0.00029315,2]
[424993050,1781386245000,-601.0,0.00029361,30]
[424993051,1781386245000,-150.0,0.00029372,2]
[424993070,1781386245000,-3000.0,0.00029666,3]
[424993052,1781386245000,-3794.56864203,0.00029383,2]
[424993059,1781386245000,-2326.0,0.0002946,3]
[424993054,1781386245000,-300.0,0.00029399,10]
[424993055,1781386245000,-300.0,0.00029399,10]
[424993053,1781386245000,-500.0,0.00029397,18]
[424993057,1781386245000,-151.0,0.000294,7]
[424993058,1781386245000,-150.1235608,0.00029435,3]
[424993060,1781386245000,-3794.56864203,0.00029507,2]
[424993061,1781386245000,-6824.11871807,0.00029509,2]
[424993062,1781386245000,-3794.56864203,0.0002958,2]
[424993066,1781386245000,-3794.56864203,0.00029629,2]
[424993063,1781386245000,-233.35245583,0.00029613,2]
[424993065,1781386245000,-3794.56864203,0.00029613,2]
[424993067,1781386245000,-500.0,0.00029666,10]
[424993064,1781386245000,-233.35245583,0.00029613,2]
[424993056,1781386245000,-150000.00999802,0.000294,3]
[424993068,1781386245000,-1440.73,0.00029666,120]
[424993133,1781386246000,-459.48927729,0.00029816,2]
[424993132,1781386246000,-178.54311152,0.00029816,2]
[424993131,1781386246000,-213.27342902,0.00029816,7]
[424993129,1781386246000,-310.30066637,0.00029816,7]
[424993124,1781386246000,-502.2205273,0.00029816,7]
[424993130,1781386246000,-165.93890331,0.00029816,7]
[424993127,1781386246000,-316.1098839,0.00029816,7]
[424993125,1781386246000,-401.71014768,0.00029816,7]
[424993126,1781386246000,-432.30306615,0.00029816,7]
[424993134,1781386246000,-170.54456752,0.00029816,7]
[424993150,1781386246000,-414.65844861,0.00029816,7]
[424993140,1781386246000,-169.24473519,0.00029816,7]
[424993138,1781386246000,-405.26570094,0.00029816,7]
[424993141,1781386246000,-427.36543022,0.00029816,7]
[424993139,1781386246000,-164.83011387,0.00029816,7]
[424993136,1781386246000,-470.91800503,0.00029816,7]
[424993137,1781386246000,-168.32312352,0.00029816,7]
[424993142,1781386246000,-430.79838781,0.00029816,7]
[424993143,1781386246000,-161.15912275,0.00029816,7]
[424993144,1781386246000,-427.734298,0.00029816,7]
[424993146,1781386246000,-569.04523811,0.00029816,7]
[424993128,1781386246000,-516.44216697,0.00029816,7]
[424993135,1781386246000,-168.69662438,0.00029816,7]
[424993123,1781386246000,-160.91014257,0.00029816,7]
[424993112,1781386246000,-447.64245333,0.00029816,7]
[424993121,1781386246000,-200.3425638,0.00029816,7]
[424993147,1781386246000,-458.79509805,0.00029816,7]
[424993099,1781386246000,-406.41045641,0.00029816,2]
[424993097,1781386246000,-378.74622063,0.00029816,7]
[424993098,1781386246000,-236.37870758,0.00029816,2]
[424993101,1781386246000,-438.41204135,0.00029816,7]
[424993102,1781386246000,-165.65661138,0.00029816,7]
[424993104,1781386246000,-169.49602715,0.00029816,7]
[424993105,1781386246000,-432.71735495,0.00029816,7]
[424993103,1781386246000,-493.57188266,0.00029816,7]
[424993108,1781386246000,-318.69425762,0.00029816,7]
[424993107,1781386246000,-160.77836687,0.00029816,7]
[424993109,1781386246000,-341.76518929,0.00029816,7]
[424993106,1781386246000,-405.85846173,0.00029816,7]
[424993110,1781386246000,-309.87667395,0.00029816,7]
[424993111,1781386246000,-437.40529594,0.00029816,7]
[424993114,1781386246000,-399.45336217,0.00029816,7]
[424993113,1781386246000,-159.8832,0.00029816,7]
[424993115,1781386246000,-159.872,0.00029816,2]
[424993117,1781386246000,-301.71095471,0.00029816,7]
[424993118,1781386246000,-199.85800027,0.00029816,7]
[424993120,1781386246000,-159.8736,0.00029816,7]
[424993116,1781386246000,-159.88482,0.00029816,7]
[424993119,1781386246000,-200.34120032,0.00029816,7]
[424993122,1781386246000,-171.19795644,0.00029816,7]
[424993148,1781386246000,-412.54147123,0.00029816,7]
[424993100,1781386246000,-169.26859293,0.00029816,7]
[424993145,1781386246000,-443.68780695,0.00029816,7]
[424993177,1781386246000,-159.8848,0.00029816,7]
[424993181,1781386246000,-159.8736,0.00029816,7]
[424993180,1781386246000,-159.8784,0.00029816,7]
[424993179,1781386246000,-159.8736,0.00029816,7]
[424993182,1781386246000,-325.20255809,0.00029816,7]
[424993183,1781386246000,-162.39162754,0.00029816,7]
[424993184,1781386246000,-487.76764419,0.00029816,7]
[424993186,1781386246000,-159.8816,0.00029816,7]
[424993185,1781386246000,-320.13445775,0.00029816,7]
[424993187,1781386246000,-160.2092338,0.00029816,7]
[424993190,1781386246000,-151.03873326,0.00029818,7]
[424993194,1781386246000,-496.26456039,0.00029819,7]
[424993191,1781386246000,-817.35614402,0.00029819,7]
[424993188,1781386246000,-160.27416082,0.00029816,7]
[424993192,1781386246000,-546.00233497,0.00029819,7]
[424993193,1781386246000,-594.94841692,0.00029819,7]
[424993200,1781386246000,-611.4314968,0.00029819,7]
[424993195,1781386246000,-491.56194384,0.00029819,7]
[424993197,1781386246000,-706.87439786,0.00029819,7]
[424993196,1781386246000,-637.72075298,0.00029819,7]
[424993198,1781386246000,-556.05446649,0.00029819,5]
[424993199,1781386246000,-559.14931635,0.00029819,7]
[424993149,1781386246000,-347.46988013,0.00029816,7]
[424993176,1781386246000,-159.88012,0.00029816,7]
[424993178,1781386246000,-159.88,0.00029816,7]
[424993189,1781386246000,-406.04429749,0.00029816,7]
[424993175,1781386246000,-159.8864,0.00029816,7]
[424993151,1781386246000,-301.06914963,0.00029816,7]
[424993174,1781386246000,-379.07212413,0.00029816,7]
[424993152,1781386246000,-330.62700308,0.00029816,7]
[424993153,1781386246000,-165.36702804,0.00029816,2]
[424993160,1781386246000,-514.64058767,0.00029816,7]
[424993154,1781386246000,-388.24190832,0.00029816,7]
[424993155,1781386246000,-523.30629523,0.00029816,7]
[424993156,1781386246000,-385.48839883,0.00029816,7]
[424993158,1781386246000,-331.80488127,0.00029816,7]
[424993159,1781386246000,-159.8848,0.00029816,7]
[424993161,1781386246000,-159.8736,0.00029816,7]
[424993157,1781386246000,-499.2209058,0.00029816,7]
[424993163,1781386246000,-159.8736,0.00029816,7]
[424993173,1781386246000,-311.32887557,0.00029816,7]
[424993162,1781386246000,-173.60860719,0.00029816,7]
[424993166,1781386246000,-159.8736,0.00029816,7]
[424993168,1781386246000,-165.47827433,0.00029816,7]
[424993169,1781386246000,-159.88,0.00029816,7]
[424993171,1781386246000,-378.08391867,0.00029816,7]
[424993167,1781386246000,-159.8738,0.00029816,7]
[424993172,1781386246000,-326.75413773,0.00029816,7]
[424993165,1781386246000,-159.872,0.00029816,7]
[424993170,1781386246000,-210.28951832,0.00029816,7]
[424993164,1781386246000,-260.18904689,0.00029816,7]
[424993222,1781386247000,-213.73965842,0.00029823,7]
[424993223,1781386247000,-305.6699823,0.00029823,7]
[424993219,1781386247000,-670.47704212,0.00029823,7]
[424993224,1781386247000,-268.79245948,0.00029823,7]
[424993221,1781386247000,-548.99800709,0.00029823,7]
[424993226,1781386247000,-429.67732108,0.00029823,7]
[424993231,1781386247000,-450.30227317,0.00029823,7]
[424993229,1781386247000,-621.72209409,0.00029823,7]
[424993230,1781386247000,-493.59165945,0.00029823,7]
[424993228,1781386247000,-486.34150156,0.00029823,7]
[424993233,1781386247000,-376.52988369,0.00029823,7]
[424993220,1781386247000,-166.92599094,0.00029823,7]
[424993234,1781386247000,-588.93433447,0.00029823,7]
[424993225,1781386247000,-343.85465998,0.00029823,7]
[424993217,1781386247000,-459.03895181,0.00029819,7]
[424993206,1781386247000,-574.81573558,0.00029819,7]
[424993213,1781386247000,-682.75749894,0.00029819,7]
[424993235,1781386247000,-513.66447879,0.00029823,7]
[424993201,1781386247000,-662.15426572,0.00029819,7]
[424993203,1781386247000,-657.43990138,0.00029819,7]
[424993202,1781386247000,-611.92126191,0.00029819,2]
[424993205,1781386247000,-631.13994146,0.00029819,7]
[424993204,1781386247000,-719.36977967,0.00029819,7]
[424993207,1781386247000,-508.01155073,0.00029819,7]
[424993208,1781386247000,-601.08592903,0.00029819,7]
[424993210,1781386247000,-529.3151791,0.00029819,7]
[424993216,1781386247000,-628.70193901,0.00029819,7]
[424993215,1781386247000,-545.36470388,0.00029819,7]
[424993209,1781386247000,-591.56997546,0.00029819,7]
[424993214,1781386247000,-459.67903871,0.00029819,7]
[424993212,1781386247000,-602.19664989,0.00029819,7]
[424993211,1781386247000,-559.71295963,0.00029819,7]
[424993218,1781386247000,-594.79606578,0.00029819,7]
[424993240,1781386247000,-166.736246,0.00029823,7]
[424993227,1781386247000,-475.73422323,0.00029823,7]
[424993232,1781386247000,-625.46603824,0.00029823,7]
[424993258,1781386247000,-1686.31,0.0002987,2]
[424993260,1781386247000,-624.2,0.0002987,2]
[424993261,1781386247000,-211.5312844,0.0002987,2]
[424993259,1781386247000,-1558.88,0.0002987,2]
[424993262,1781386247000,-1400.3030448,0.000299,30]
[424993263,1781386247000,-500.0,0.000299,10]
[424993264,1781386247000,-1430.70530579,0.000299,2]
[424993265,1781386247000,-245.51614042,0.000299,2]
[424993267,1781386247000,-749.96278933,0.00029943,2]
[424993266,1781386247000,-212.90657293,0.00029943,2]
[424993268,1781386247000,-158.78892746,0.00029955,2]
[424993269,1781386247000,-158.78892746,0.00029955,2]
[424993270,1781386247000,-3794.56864203,0.00029983,2]
[424993271,1781386247000,-268144.35277248,0.00029999,6]
[424993236,1781386247000,-492.11074949,0.00029823,7]
[424993256,1781386247000,-6824.11871807,0.00029869,2]
[424993255,1781386247000,-2238.15547797,0.00029861,2]
[424993257,1781386247000,-1281.25,0.0002987,2]
[424993252,1781386247000,-620.63338735,0.00029824,2]
[424993239,1781386247000,-518.89154478,0.00029823,7]
[424993238,1781386247000,-625.70209588,0.00029823,7]
[424993254,1781386247000,-219.84067592,0.00029836,2]
[424993242,1781386247000,-431.01662253,0.00029823,7]
[424993243,1781386247000,-163.8198606,0.00029823,7]
[424993241,1781386247000,-460.74749091,0.00029823,7]
[424993245,1781386247000,-500.55671283,0.00029823,7]
[424993244,1781386247000,-424.23025585,0.00029823,7]
[424993237,1781386247000,-543.24402078,0.00029823,7]
[424993247,1781386247000,-252.30417673,0.00029823,2]
[424993246,1781386247000,-467.71038634,0.00029823,7]
[424993251,1781386247000,-612.60710516,0.00029824,7]
[424993250,1781386247000,-164.551618,0.00029824,7]
[424993249,1781386247000,-526.64048696,0.00029824,7]
[424993248,1781386247000,-264.33090429,0.00029823,2]
[424993253,1781386247000,-400.83182403,0.00029824,7]
[424993272,1781386248000,-62756.80064679,0.00029999,6]
[424993277,1781386249000,-2559.65,0.00027872,2]
[424993280,1781386249000,-2559.65,0.00028033,30]
[424993282,1781386249000,-196.23,0.00028068,30]
[424993283,1781386249000,-196.23,0.00028099,2]
[424993275,1781386249000,-242.0,0.00024,2]
[424993276,1781386249000,-2297.37506258,0.00027678,2]
[424993274,1781386249000,-242.0,0.00023,2]
[424993273,1781386249000,-242.0,0.00022,2]
[424993278,1781386249000,-196.23,0.00027977,30]
[424993279,1781386249000,-196.23,0.00028007,2]
[424993285,1781386249000,-2559.65,0.00028194,7]
[424993281,1781386249000,-196.23,0.00028038,7]
[424993286,1781386249000,-2559.65,0.00028355,2]
[424993297,1781386249000,-170.08307293,0.0003,2]
[424993295,1781386249000,-839.06718577,0.00029999,2]
[424993296,1781386249000,-3794.56864203,0.0003,2]
[424993284,1781386249000,-196.39,0.0002813,7]
[424993292,1781386249000,-1440.73,0.00029999,120]
[424993294,1781386249000,-1440.73,0.00029999,120]
[424993290,1781386249000,-300.0,0.00029999,10]
[424993291,1781386249000,-150.0,0.00029999,20]
[424993288,1781386249000,-200.78997789,0.0002999,2]
[424993287,1781386249000,-882.0,0.00029823,10]
[424993289,1781386249000,-16305.19688582,0.00029999,6]
[424993293,1781386249000,-1440.73,0.00029999,120]
[424993308,1781386250000,-1000.0,0.0003,120]
[424993306,1781386250000,-347.83,0.0003,11]